[Event "4th Memorial Warakomska-B 2020"]
[Site "Suwalki"]
[Date "2020.08.12"]
[Round "8.1"]
[White "Wierzbicki, Michal"]
[Black "Rak, Tomasz"]
[Result "0-1"]
[ECO "E91"]
[WhiteElo "1849"]
[BlackElo "1879"]
[Annotator "NA"]
[PlyCount "98"]
[EventDate "2020.08.06"]
[EventType "swiss"]
[EventCountry "POL"]
[SourceTitle "playchess.com"]
[Source "ChessBase"]
[SourceQuality "1"]
[TimeControl "40/5400+30:1800+30"]

1. d4 {[%emt 0:00:00]} Nf6 {[%emt 0:00:00]} 2. Nf3 {[%emt 0:00:00]} g6 {[%emt 0:00:00]} 3. c4 {[%emt 0:00:00]} Bg7 {[%emt 0:00:13]} 4. Nc3 {[%emt 0:00:00]} O-O {[%emt 0:00:17]} 5. e4 {[%emt 0:00:37]} d6 {[%emt 0:00:05]} 6. Be2 {[%emt 0:00:17]} a5 {[%emt 0:00:08]} 7. O-O {[%emt 0:08:46] E91: King's Indian: Classical: 6 Be2, unusual replies including 6...c5 and 6...Bg4.} Nfd7 {[%emt 0:00:11]} 8. Be3 {[%emt 0:09:59] [#]} Na6 $146 {[%emt 0:03:33]} ({Predecessor:} 8... e5 9. dxe5 Nxe5 10. Nxe5 Bxe5 11. f4 Bg7 12. f5 Re8 13. Bd4 Nd7 14. Bxg7 Kxg7 {0-1 (43) Van Espen,E (2112)-Gergacz,A (2432) Leuven 2011}) 9. Qd2 {[%emt 0:05:05]} e5 {[%emt 0:00:10]} 10. Bh6 {[%emt 0:02:09]} c6 {[%emt 0:01:08]} 11. Rfd1 {[%emt 0:04:11]} Qe7 {[%emt 0:00:33]} 12. Bxg7 {[%emt 0:13:27]} Kxg7 {[%emt 0:00:02]} 13. Rac1 {[%emt 0:00:25]} Nc7 {[%emt 0:05:00]} 14. c5 {[%emt 0:09:20]} dxc5 {[%emt 0:01:29]} 15. d5 {[%emt 0:00:17]} Qd6 {[%emt 0:02:23]} 16. Qe3 {[%emt 0:09:54]} a4 {[%emt 0:05:38]} 17. dxc6 {[%emt 0:04:15]} Qxc6 {[%emt 0:00:04]} 18. Bc4 {[%emt 0:02:29]} Ra5 {[%emt 0:09:41]} 19. Bd5 {[%emt 0:05:58]} Qb6 {[%emt 0:04:31]} 20. Nd2 {[%emt 0:00:29]} Qa7 {[%emt 0:02:58]} (20... Ra7 $11) 21. Nc4 {[%emt 0:02:20]} Ra6 {[%emt 0:00:19]} 22. Qg3 {[%emt 0:03:44]} f6 {[%emt 0:01:27]} 23. Na3 {[%emt 0:02:02]} Rb6 {[%emt 0:08:07]} 24. Rc2 {[%emt 0:01:56]} Rb4 {[%emt 0:01:48]} 25. Bc4 {[%emt 0:05:08]} Qa5 {[%emt 0:02:27]} 26. Qd3 {[%emt 0:04:34]} Nb6 {[%emt 0:00:47]} 27. Ne2 {[%emt 0:03:13]} Nxc4 {[%emt 0:06:26]} 28. Nxc4 {[%emt 0:00:01]} Qa6 {[%emt 0:00:23]} 29. a3 {[%emt 0:02:39]} Rb3 {[%emt 0:00:50]} 30. Qd6 {[%emt 0:01:12]} Qxd6 {[%emt 0:00:24]} 31. Rxd6 {[%emt 0:00:28]} Nb5 {[%emt 0:02:42]} 32. Rb6 {[%emt 0:00:15]} (32. Rd5 $15) 32... Nd4 {[%emt 0:00:56]} 33. Nxd4 {[%emt 0:00:28]} cxd4 {[%emt 0:00:42]} 34. Rd6 {[%emt 0:00:19]} d3 {[%emt 0:07:49]} 35. Rd2 {[%emt 0:00:49]} Rf7 {[%emt 0:01:05]} 36. Nb6 {[%emt 0:00:36]} Rc7 {[%emt 0:00:28]} 37. h3 {[%emt 0:00:27]} Rc1+ {[%emt 0:02:48]} 38. Kh2 {[%emt 0:00:03]} Rc2 {[%emt 0:00:16]} 39. R2xd3 {[%emt 0:00:30]} Rbxb2 {[%emt 0:00:41]} 40. Nxa4 {[%emt 0:00:00]} Ra2 {[%emt 0:00:00]} 41. Rf3 {[%emt 0:12:18] [#]} (41. Nb6 $11 {remains equal.}) 41... f5 $1 {[%emt 0:05:22]} 42. Nb6 {[%emt 0:15:09]} fxe4 {[%emt 0:05:57]} 43. Rg3 {[%emt 0:00:20]} Bf5 {[%emt 0:01:13]} 44. Nd7 {[%emt 0:00:21]} Rxf2 {[%emt 0:05:03]} 45. Nxe5 {[%emt 0:00:08]} e3 {[%emt 0:05:35]} 46. Rxe3 $19 {[%emt 0:01:19]} Rxg2+ {[%emt 0:01:12]} 47. Kh1 {[%emt 0:00:01]} Rh2+ {[%emt 0:07:07]} 48. Kg1 {[%emt 0:00:03]} Bxh3 {[%emt 0:00:37]} 49. Nf3 {[%emt 0:00:35]} Rag2+ {[%emt 0:01:04]} 0-1

[Event "4th Memorial Warakomska-B 2020"]
[Site "Suwalki"]
[Date "2020.08.12"]
[Round "8.2"]
[White "Ryszkiewicz, Adam"]
[Black "Sapinski, Sebastian"]
[Result "1-0"]
[ECO "C07"]
[WhiteElo "1941"]
[BlackElo "1603"]
[Annotator "ChessBase"]
[PlyCount "65"]
[EventDate "2020.08.06"]
[EventType "swiss"]
[EventCountry "POL"]
[SourceTitle "playchess.com"]
[Source "ChessBase"]
[SourceQuality "1"]
[TimeControl "40/5400+30:1800+30"]

1. e4 {[%emt 0:00:00]} e6 {[%emt 0:00:00]} 2. d4 {[%emt 0:00:00]} d5 {[%emt 0:00:00]} 3. Nd2 {[%emt 0:00:00]} c5 {[%emt 0:00:00]} 4. Ngf3 {[%emt 0:00:00]} cxd4 {[%emt 0:00:17]} 5. Nxd4 {[%emt 0:01:20]} Nc6 {[%emt 0:00:06]} 6. Bb5 {[%emt 0:02:13]} Bd7 {[%emt 0:00:06]} 7. Nxc6 {[%emt 0:02:00]} bxc6 {[%emt 0:00:06]} 8. Bd3 {[%emt 0:00:11]} Qc7 {[%emt 0:00:54]} 9. O-O {[%emt 0:00:39]} Bd6 {[%emt 0:00:17]} 10. h3 {[%emt 0:04:06]} Ne7 {[%emt 0:00:47]} 11. b3 {[%emt 0:01:04]} Ng6 {[%emt 0:01:52]} 12. exd5 {[%emt 0:02:08]} exd5 {[%emt 0:01:59]} 13. Re1+ {[%emt 0:00:48]} Be6 {[%emt 0:00:24]} 14. Nf3 {[%emt 0:03:26]} Ne5 {[%emt 0:20:30]} 15. Bb2 {[%emt 0:02:39]} Nxd3 {[%emt 0:07:46]} 16. Qxd3 {[%emt 0:00:13]} O-O-O {[%emt 0:01:33]} 17. Ng5 {[%emt 0:03:41]} Qd7 {[%emt 0:02:21]} 18. Bxg7 {[%emt 0:05:25]} Rhg8 {[%emt 0:00:32]} 19. Bf6 {[%emt 0:00:06]} Rxg5 {[%emt 0:09:13]} 20. Bxg5 {[%emt 0:00:30]} Rg8 {[%emt 0:00:11]} 21. h4 {[%emt 0:12:19]} Rg6 {[%emt 0:13:31]} 22. Qe3 {[%emt 0:01:44]} d4 {[%emt 0:05:19]} 23. Qe2 {[%emt 0:20:26]} h6 {[%emt 0:01:36]} 24. Bd2 {[%emt 0:00:05]} Bd5 {[%emt 0:16:18]} 25. f3 {[%emt 0:01:03]} Kb7 {[%emt 0:02:51]} 26. g4 {[%emt 0:04:18]} f5 {[%emt 0:02:59]} 27. Qe8 {[%emt 0:07:04]} Qg7 {[%emt 0:02:31]} 28. g5 {[%emt 0:03:29]} f4 {[%emt 0:01:25]} 29. Bxf4 {[%emt 0:01:28]} hxg5 {[%emt 0:00:41]} 30. h5 {[%emt 0:00:21]} Re6 {[%emt 0:05:36]} 31. Rxe6 {[%emt 0:00:22]} Bxe6 {[%emt 0:00:18]} 32. Bxd6 {[%emt 0:00:08]} d3 {[%emt 0:00:11]} 33. Qe7+ {[%emt 0:00:05]} 1-0

[Event "4th Memorial Warakomska-B 2020"]
[Site "Suwalki"]
[Date "2020.08.12"]
[Round "8.3"]
[White "Wolagiewicz, Kinga"]
[Black "Sapeta, Robert"]
[Result "0-1"]
[ECO "B42"]
[WhiteElo "1719"]
[BlackElo "1895"]
[Annotator "NA"]
[PlyCount "130"]
[EventDate "2020.08.06"]
[EventType "swiss"]
[EventCountry "POL"]
[SourceTitle "playchess.com"]
[Source "ChessBase"]
[SourceQuality "1"]
[TimeControl "40/5400+30:1800+30"]

1. e4 {[%emt 0:00:00]} e6 {[%emt 0:00:00]} 2. d4 {[%emt 0:00:00]} c5 {[%emt 0:00:00]} 3. Nf3 {[%emt 0:00:00]} cxd4 {[%emt 0:00:00]} 4. Nxd4 {[%emt 0:00:00]} a6 {[%emt 0:00:11]} 5. Bd3 {[%emt 0:00:13]} Qc7 {[%emt 0:00:52]} 6. O-O {[%emt 0:00:39]} Nf6 {[%emt 0:00:36]} 7. Nc3 {[%emt 0:00:31]} d6 {[%emt 0:01:53]} 8. Kh1 {[%emt 0:01:26]} Bd7 {[%emt 0:00:49] B43: Sicilian: Kan Variation: 5 Nc3.} 9. f4 {[%emt 0:01:50]} Nc6 {[%emt 0:00:57]} 10. Nf3 {[%emt 0:03:01] [#]} h5 $146 {[%emt 0:24:31]} ({Predecessor:} 10... Be7 11. Be3 b5 12. Qd2 Nb4 13. Nd4 Nxd3 14. cxd3 Ng4 15. Bg1 O-O 16. Qe2 Nh6 {½-½ (44) De Mooij,M (1765)-Duijnisveld,A (1563) Leiden 2006}) 11. Qe1 {[%emt 0:07:11]} Be7 {[%emt 0:05:15]} 12. a3 {[%emt 0:13:00]} Rc8 {[%emt 0:14:10]} 13. f5 {[%emt 0:10:44]} Ne5 {[%emt 0:04:16]} 14. Nxe5 {[%emt 0:15:31]} dxe5 {[%emt 0:00:07]} 15. Be3 {[%emt 0:00:14]} exf5 {[%emt 0:01:45]} 16. exf5 {[%emt 0:00:30]} Bc6 {[%emt 0:01:36]} 17. Bf2 {[%emt 0:05:52]} h4 {[%emt 0:15:12]} 18. h3 {[%emt 0:01:04]} b5 {[%emt 0:06:05]} 19. Rg1 {[%emt 0:16:39]} Nh5 {[%emt 0:05:18]} 20. Be4 {[%emt 0:02:39]} Bxe4 {[%emt 0:09:35]} 21. Qxe4 {[%emt 0:00:11]} Nf6 {[%emt 0:00:09]} 22. Qe2 {[%emt 0:02:01]} Nd7 {[%emt 0:02:20]} 23. Rad1 {[%emt 0:03:15]} Bf6 {[%emt 0:01:56]} 24. Rd2 {[%emt 0:01:40]} O-O $2 {[%emt 0:01:16]} (24... Bg5 $16) 25. Nd5 {[%emt 0:02:48]} (25. Rgd1 $142) 25... Qc4 {[%emt 0:00:41]} 26. Qh5 {[%emt 0:02:42]} Rfe8 {[%emt 0:01:17]} 27. Rgd1 {[%emt 0:02:26]} Qe4 {[%emt 0:01:05]} 28. Nc3 {[%emt 0:03:34]} Rxc3 {[%emt 0:00:20]} 29. bxc3 {[%emt 0:00:21]} Nf8 {[%emt 0:01:07]} 30. Re1 {[%emt 0:02:15]} Qc4 {[%emt 0:00:31]} 31. Rd6 {[%emt 0:01:55]} Nh7 {[%emt 0:00:58]} 32. Rd7 {[%emt 0:00:48]} Rf8 {[%emt 0:00:19]} 33. Qf3 {[%emt 0:00:29]} Ng5 {[%emt 0:00:11]} 34. Qd3 {[%emt 0:00:20]} Qf4 {[%emt 0:00:18]} 35. Bc5 {[%emt 0:00:58]} Re8 {[%emt 0:00:18]} 36. Rf1 {[%emt 0:00:15]} Qa4 {[%emt 0:00:21]} 37. Re1 {[%emt 0:00:52]} Qf4 {[%emt 0:00:43]} 38. Rf1 {[%emt 0:00:11]} Qa4 $1 {[%emt 0:00:30]} 39. Bb4 {[%emt 0:00:04]} e4 {[%emt 0:00:11]} 40. Qe3 {[%emt 0:00:00]} Qxc2 {[%emt 0:00:00]} 41. Rd2 {[%emt 0:06:51]} Qb3 {[%emt 0:03:06]} 42. Rd6 {[%emt 0:04:09]} a5 {[%emt 0:06:16]} 43. Bxa5 {[%emt 0:02:32]} Qxa3 {[%emt 0:00:39]} 44. Bb4 {[%emt 0:00:53]} Qb2 {[%emt 0:05:51]} 45. Rd2 {[%emt 0:06:00]} Qb3 {[%emt 0:00:51]} 46. Ra1 {[%emt 0:01:17]} Rc8 {[%emt 0:08:30]} 47. Rda2 {[%emt 0:03:19]} Qd5 {[%emt 0:02:11]} 48. Qf4 {[%emt 0:03:41]} Rd8 {[%emt 0:01:56]} 49. Ra6 {[%emt 0:03:08]} Be5 {[%emt 0:01:46]} 50. Qxh4 {[%emt 0:02:37]} (50. Qxg5 $2 {[#] leads to mate.} Qd1+ $1 {[%mdl 576] Back Rank} 51. Rxd1 Rxd1#) 50... Bf6 {[%emt 0:03:59]} 51. Rxf6 {[%emt 0:01:46]} gxf6 {[%emt 0:00:39]} 52. Be7 {[%emt 0:00:36]} Kg7 {[%emt 0:02:16]} 53. Bxf6+ {[%emt 0:01:14]} Kxf6 {[%emt 0:00:32]} 54. Qh6+ {[%emt 0:00:33]} Ke7 {[%emt 0:00:44]} 55. Qxg5+ {[%emt 0:00:32]} Kd7 {[%emt 0:00:00]} 56. Qf6 {[%emt 0:00:00]} (56. Ra7+ $142 Kc6 57. h4) 56... Rc8 {[%emt 0:00:00]} 57. h4 {[%emt 0:00:00]} Rc6 {[%emt 0:00:00]} 58. Ra7+ {[%emt 0:01:06]} Rc7 {[%emt 0:00:16]} 59. Rxc7+ {[%emt 0:00:20]} Kxc7 {[%emt 0:00:05]} 60. Qe7+ {[%emt 0:00:05]} Kc6 {[%emt 0:00:51]} 61. Qe8+ {[%emt 0:00:38]} Kc7 {[%emt 0:00:47]} 62. Qe7+ {[%emt 0:00:37]} Kc6 {[%emt 0:00:05]} 63. Qg5 {[%emt 0:00:46]} Qe5 {[%emt 0:00:57]} 64. Qh6+ {[%emt 0:00:30]} f6 {[%emt 0:00:14]} 65. Qg6 $19 {[%emt 0:00:37]} (65. Qe3 $11) 65... e3 {[%emt 0:00:15]} 0-1

[Event "4th Memorial Warakomska-B 2020"]
[Site "Suwalki"]
[Date "2020.08.12"]
[Round "8.4"]
[White "Kaminski, Maciej"]
[Black "Zalega, Maciej"]
[Result "1-0"]
[ECO "A45"]
[WhiteElo "1869"]
[BlackElo "1743"]
[Annotator "NA"]
[PlyCount "93"]
[EventDate "2020.08.06"]
[EventType "swiss"]
[EventCountry "POL"]
[SourceTitle "playchess.com"]
[Source "ChessBase"]
[SourceQuality "1"]
[TimeControl "40/5400+30:1800+30"]

1. d4 {[%emt 0:00:00]} Nf6 {[%emt 0:00:00]} 2. Bf4 {[%emt 0:00:00]} g6 {[%emt 0:00:33]} 3. Nc3 {[%emt 0:00:00]} d5 {[%emt 0:00:22]} 4. e3 {[%emt 0:00:00]} Bg7 {[%emt 0:00:25]} 5. h4 {[%emt 0:00:00]} h5 {[%emt 0:05:39]} 6. Nf3 {[%emt 0:01:19] A45: Trompowsky Attack.} Bg4 {[%emt 0:01:36] 6...c6 is a critical line.} 7. Qd2 {[%emt 0:00:29]} c6 {[%emt 0:04:35]} 8. Ne5 {[%emt 0:01:40]} Nbd7 {[%emt 0:05:02]} 9. f3 {[%emt 0:06:40] [#]} Be6 $146 {[%emt 0:09:21]} ({Predecessor:} 9... Bf5 10. O-O-O Nxe5 11. Bxe5 Bh6 12. Kb1 b5 13. Bd3 Be6 14. Ne2 Qb6 15. Nf4 Bd7 {1-0 (63) Trent,L (2383)-Ajele,R (2188) Caleta 2020}) 10. O-O-O {[%emt 0:06:11]} Bh6 {[%emt 0:03:40]} 11. Bxh6 {[%emt 0:04:57]} Rxh6 {[%emt 0:00:13]} 12. Be2 {[%emt 0:06:42]} Rh8 {[%emt 0:01:54]} 13. e4 {[%emt 0:01:13]} dxe4 {[%emt 0:02:21]} 14. Nxd7 {[%emt 0:00:41]} Qxd7 {[%emt 0:02:46]} 15. Nxe4 {[%emt 0:01:09]} Nxe4 {[%emt 0:02:07]} 16. fxe4 {[%emt 0:00:06]} O-O-O {[%emt 0:00:59]} 17. Rhf1 {[%emt 0:02:10]} Qd6 {[%emt 0:09:03]} 18. e5 {[%emt 0:08:26]} Qd5 {[%emt 0:03:09]} 19. c4 {[%emt 0:02:17]} Qxg2 {[%emt 0:02:18]} 20. Qe3 {[%emt 0:00:11]} Rhf8 {[%emt 0:17:34]} 21. Bf3 {[%emt 0:07:46]} Qg3 {[%emt 0:11:15] [#]} 22. Rg1 $1 {[%emt 0:02:07]} Qxh4 {[%emt 0:00:18]} 23. Rh1 {[%emt 0:00:07]} Bh3 {[%emt 0:00:59]} 24. Bg2 {[%emt 0:01:46]} e6 {[%emt 0:00:52]} 25. Bxh3 {[%emt 0:00:54]} Qe7 {[%emt 0:00:06]} 26. d5 {[%emt 0:00:45]} cxd5 {[%emt 0:05:17]} 27. cxd5 {[%emt 0:00:45]} Kb8 {[%emt 0:01:25]} 28. d6 {[%emt 0:01:26]} Qd7 {[%emt 0:00:33]} 29. Kb1 {[%emt 0:00:57]} Qc6 {[%emt 0:02:30]} 30. Rc1 {[%emt 0:00:55]} Qb5 {[%emt 0:01:53]} 31. Rc5 {[%emt 0:05:32]} Qb6 {[%emt 0:02:12]} 32. Rhc1 {[%emt 0:01:09]} Rc8 {[%emt 0:01:29]} 33. Qh6 {[%emt 0:00:47]} Rfd8 {[%emt 0:02:34]} 34. Rxc8+ {[%emt 0:03:25]} Rxc8 {[%emt 0:00:01]} 35. Rxc8+ {[%emt 0:00:15]} Kxc8 {[%emt 0:00:01]} 36. Qf8+ {[%emt 0:00:15]} Kd7 {[%emt 0:00:02]} 37. Qxf7+ {[%emt 0:02:07]} Kc6 {[%emt 0:00:00]} 38. Bg2+ {[%emt 0:01:41]} Kb5 {[%emt 0:00:19]} 39. Qf1+ {[%emt 0:03:04]} Ka5 {[%emt 0:00:17]} 40. Qe1+ {[%emt 0:00:00]} Kb5 {[%emt 0:00:00]} 41. Qe2+ {[%emt 0:01:47]} Kc5 {[%emt 0:00:32]} 42. Qc2+ {[%emt 0:00:53]} Kb5 {[%emt 0:00:11]} 43. Qd3+ {[%emt 0:00:25]} Ka5 {[%emt 0:00:04]} 44. Qc3+ {[%emt 0:00:21]} Ka4 {[%emt 0:00:14]} 45. b3+ {[%emt 0:00:49]} Ka3 {[%emt 0:00:06]} 46. Qc1+ {[%emt 0:00:06]} Kb4 {[%emt 0:00:04]} 47. Qc4+ {[%emt 0:00:07]} 1-0

[Event "4th Memorial Warakomska-B 2020"]
[Site "Suwalki"]
[Date "2020.08.12"]
[Round "8.5"]
[White "Kiolbasa, Damian"]
[Black "Obolonin, Filipp"]
[Result "1-0"]
[ECO "D00"]
[WhiteElo "1973"]
[BlackElo "1922"]
[Annotator "ChessBase"]
[PlyCount "63"]
[EventDate "2020.08.06"]
[EventType "swiss"]
[EventCountry "POL"]
[SourceTitle "playchess.com"]
[Source "ChessBase"]
[SourceQuality "1"]
[TimeControl "40/5400+30:1800+30"]

1. d4 {[%emt 0:00:00]} d5 {[%emt 0:01:21]} 2. Bg5 {[%emt 0:00:00]} c6 {[%emt 0:00:21]} 3. Nf3 {[%emt 0:00:07]} Nf6 {[%emt 0:02:54]} 4. Nbd2 {[%emt 0:00:35]} Nbd7 {[%emt 0:02:38]} 5. e3 {[%emt 0:00:35]} g6 {[%emt 0:01:23]} 6. h4 {[%emt 0:00:45]} h6 {[%emt 0:00:06]} 7. Bf4 {[%emt 0:00:06]} Bg7 {[%emt 0:00:08]} 8. Ne5 {[%emt 0:03:51]} Nh5 {[%emt 0:07:24]} 9. Bh2 {[%emt 0:00:13]} Nxe5 {[%emt 0:01:29]} 10. dxe5 {[%emt 0:00:08]} Bf8 {[%emt 0:00:11]} 11. Bd3 {[%emt 0:08:24]} Ng7 {[%emt 0:00:15]} 12. e4 {[%emt 0:08:21]} h5 {[%emt 0:01:23]} 13. exd5 {[%emt 0:02:18]} cxd5 {[%emt 0:00:08]} 14. c4 {[%emt 0:00:39]} Ne6 {[%emt 0:05:21]} 15. Qb3 {[%emt 0:12:33]} dxc4 {[%emt 0:06:59]} 16. Bxc4 {[%emt 0:02:10]} Bh6 {[%emt 0:00:07]} 17. Ne4 {[%emt 0:01:52]} O-O {[%emt 0:00:14]} 18. O-O {[%emt 0:00:22]} Rb8 {[%emt 0:04:30]} 19. Rad1 {[%emt 0:00:45]} Qc7 {[%emt 0:00:39]} 20. f4 {[%emt 0:03:54]} Nc5 {[%emt 0:03:57]} 21. Qc3 {[%emt 0:02:38]} Na6 {[%emt 0:03:46]} 22. Rc1 {[%emt 0:04:10]} Qb6+ {[%emt 0:00:48]} 23. Kh1 {[%emt 0:00:01]} Bf5 {[%emt 0:01:08]} 24. Ng3 {[%emt 0:00:25]} e6 {[%emt 0:00:29]} 25. Nxf5 {[%emt 0:00:40]} exf5 {[%emt 0:00:16]} 26. Bg1 {[%emt 0:00:09]} Qd8 {[%emt 0:00:51]} 27. g3 {[%emt 0:00:06]} b5 {[%emt 0:00:57]} 28. Rfd1 {[%emt 0:00:52]} Qe7 {[%emt 0:04:21]} 29. Bb3 {[%emt 0:00:37]} Rfd8 {[%emt 0:06:48]} 30. Qc6 {[%emt 0:00:33]} Rxd1 {[%emt 0:01:54]} 31. Qxg6+ {[%emt 0:00:15]} Bg7 {[%emt 0:00:17]} 32. Rxd1 {[%emt 0:00:05]} 1-0

[Event "4th Memorial Warakomska-B 2020"]
[Site "Suwalki"]
[Date "2020.08.12"]
[Round "8.6"]
[White "Widelski, Kacper"]
[Black "Lukasik, Zuzanna"]
[Result "1-0"]
[ECO "B43"]
[WhiteElo "1879"]
[BlackElo "1553"]
[Annotator "NA"]
[PlyCount "67"]
[EventDate "2020.08.06"]
[EventType "swiss"]
[EventCountry "POL"]
[SourceTitle "playchess.com"]
[Source "ChessBase"]
[SourceQuality "1"]
[TimeControl "40/5400+30:1800+30"]

1. e4 {[%emt 0:00:00]} c5 {[%emt 0:00:00]} 2. Nf3 {[%emt 0:00:00]} e6 {[%emt 0:00:10]} 3. d4 {[%emt 0:00:00]} cxd4 {[%emt 0:00:04]} 4. Nxd4 {[%emt 0:00:00]} a6 {[%emt 0:00:12]} 5. Nc3 {[%emt 0:00:00]} Qc7 {[%emt 0:00:14]} 6. Bd3 {[%emt 0:00:07]} Nf6 {[%emt 0:00:10]} 7. O-O {[%emt 0:01:23]} d6 {[%emt 0:00:11]} 8. a4 {[%emt 0:01:12]} Nbd7 {[%emt 0:00:34] B43: Sicilian: Kan Variation: 5 Nc3.} 9. Be3 {[%emt 0:02:30]} b6 {[%emt 0:02:11]} 10. Qe2 {[%emt 0:17:01]} Bb7 {[%emt 0:01:12]} 11. Rae1 {[%emt 0:01:37]} g6 {[%emt 0:02:43] [#]} 12. h3 $146 {[%emt 0:06:21]} ({Predecessor:} 12. Kh1 Nc5 13. f3 Bg7 14. Bg1 h5 15. g3 O-O 16. Nb3 Ncd7 17. Bd4 e5 18. Be3 {½-½ (37) Rosenberger,F (2165)-Wagner,D (2355) Schwaebisch Gmuend 2012}) 12... Bg7 {[%emt 0:00:22]} 13. f4 {[%emt 0:02:21]} O-O {[%emt 0:02:59]} 14. Bf2 {[%emt 0:10:09]} Rfc8 {[%emt 0:04:46]} 15. Qd2 {[%emt 0:16:13]} Nc5 {[%emt 0:07:05]} 16. Nf3 {[%emt 0:06:06]} Nfd7 {[%emt 0:03:29]} 17. Bd4 {[%emt 0:01:40]} Nxd3 {[%emt 0:02:24]} 18. cxd3 {[%emt 0:02:31]} Bxd4+ {[%emt 0:00:34]} 19. Nxd4 {[%emt 0:00:07]} Nc5 {[%emt 0:03:54]} 20. Nf3 {[%emt 0:02:38]} Bc6 {[%emt 0:05:27]} 21. f5 {[%emt 0:02:31]} exf5 {[%emt 0:04:52]} 22. exf5 {[%emt 0:00:42]} Re8 {[%emt 0:04:27]} 23. Qh6 {[%emt 0:05:11]} Nd7 {[%emt 0:07:03]} 24. Rxe8+ {[%emt 0:02:41]} Rxe8 {[%emt 0:00:14]} 25. Ng5 {[%emt 0:00:19]} Nf6 {[%emt 0:05:18]} 26. fxg6 {[%emt 0:00:16]} fxg6 {[%emt 0:00:23]} 27. Rxf6 {[%emt 0:00:16]} Re1+ {[%emt 0:00:26]} 28. Rf1 {[%emt 0:00:07]} Qe7 {[%emt 0:01:01]} 29. Nce4 {[%emt 0:01:16]} Rxf1+ {[%emt 0:00:30]} 30. Kxf1 {[%emt 0:00:13]} Bxe4 {[%emt 0:00:34]} 31. dxe4 {[%emt 0:00:57]} Qf6+ $18 {[%emt 0:00:16]} 32. Kg1 {[%emt 0:00:36]} Qd4+ {[%emt 0:00:22]} 33. Kh1 {[%emt 0:00:08]} Qd1+ {[%emt 0:01:24]} 34. Kh2 {[%emt 0:00:05]} 1-0

[Event "4th Memorial Warakomska-B 2020"]
[Site "Suwalki"]
[Date "2020.08.12"]
[Round "8.7"]
[White "Bancarewicz, Aleks"]
[Black "Cwiek, Ryszard"]
[Result "0-1"]
[ECO "C10"]
[WhiteElo "1781"]
[BlackElo "1867"]
[Annotator "NA"]
[PlyCount "113"]
[EventDate "2020.08.06"]
[EventType "swiss"]
[EventCountry "POL"]
[SourceTitle "playchess.com"]
[Source "ChessBase"]
[SourceQuality "1"]
[TimeControl "40/5400+30:1800+30"]

1. e4 {[%emt 0:00:00]} e6 {[%emt 0:00:00]} 2. d4 {[%emt 0:00:00]} d5 {[%emt 0:00:00]} 3. Nc3 {[%emt 0:00:00]} Nc6 {[%emt 0:00:00]} 4. Nf3 {[%emt 0:11:45]} Nf6 {[%emt 0:00:00]} 5. Bg5 {[%emt 0:02:57]} Be7 {[%emt 0:04:28]} 6. e5 {[%emt 0:02:39]} Ne4 {[%emt 0:04:01]} 7. Bxe7 {[%emt 0:02:08]} Qxe7 {[%emt 0:00:09]} 8. a3 {[%emt 0:04:04]} Nxc3 {[%emt 0:10:30]} 9. bxc3 {[%emt 0:01:21]} Na5 {[%emt 0:00:08] C10: French with 3 Nc3: Unusual Black 3rd moves and 3...dxe4.} 10. Qb1 {[%emt 0:13:55]} Bd7 {[%emt 0:09:03]} 11. Qb4 {[%emt 0:01:04]} b6 {[%emt 0:00:15] [#]} 12. Qxe7+ $146 {[%emt 0:16:28]} ({Predecessor:} 12. Ba6 c5 13. dxc5 Qxc5 14. O-O Nc6 15. Qg4 O-O 16. Bd3 h6 17. Rae1 f5 18. exf6 Rxf6 {½-½ (48) Klima,L (2425)-Szymanski,M (2407) Olomouc 2003}) 12... Kxe7 {[%emt 0:00:05]} 13. Nd2 {[%emt 0:00:05]} Ba4 {[%emt 0:11:02]} 14. Bd3 {[%emt 0:05:52]} c5 {[%emt 0:04:57]} 15. Ra2 {[%emt 0:02:35]} c4 {[%emt 0:25:14]} 16. Be2 {[%emt 0:00:46]} Bd7 {[%emt 0:01:26]} 17. O-O {[%emt 0:06:08]} b5 {[%emt 0:02:25]} 18. f4 {[%emt 0:00:55]} Rab8 {[%emt 0:01:53]} 19. Rb2 {[%emt 0:02:43]} Rb6 {[%emt 0:05:11]} 20. Bf3 {[%emt 0:01:19]} Nc6 $11 {[%emt 0:01:53]} 21. Ra1 {[%emt 0:09:35]} a5 {[%emt 0:02:04]} 22. Nf1 {[%emt 0:00:25]} Rhb8 {[%emt 0:01:48]} 23. Ne3 {[%emt 0:00:50]} R6b7 {[%emt 0:02:12]} 24. Rab1 {[%emt 0:04:46]} b4 {[%emt 0:02:55]} 25. axb4 {[%emt 0:00:22]} axb4 {[%emt 0:00:01]} 26. cxb4 {[%emt 0:02:00]} c3 {[%emt 0:01:30]} 27. Ra2 {[%emt 0:06:32]} Nxd4 {[%emt 0:00:13]} 28. Kf2 {[%emt 0:00:52]} Nxf3 {[%emt 0:01:33]} 29. Kxf3 {[%emt 0:00:14]} Rxb4 {[%emt 0:00:07]} 30. Rxb4 {[%emt 0:00:54]} Rxb4 {[%emt 0:00:01]} 31. Nd1 {[%emt 0:00:07]} d4 {[%emt 0:00:30]} 32. g3 {[%emt 0:00:01]} Rb1 {[%emt 0:01:11]} 33. Nxc3 {[%emt 0:00:59]} dxc3 {[%emt 0:00:11]} 34. Ra3 {[%emt 0:00:01]} Rb6 {[%emt 0:02:01]} 35. Rxc3 {[%emt 0:00:44]} Rc6 {[%emt 0:00:13]} 36. Ra3 {[%emt 0:00:22]} Rxc2 {[%emt 0:00:16]} 37. h4 {[%emt 0:00:02]} h5 {[%emt 0:01:04]} 38. Ra7 {[%emt 0:00:42]} Ke8 {[%emt 0:01:22]} 39. Ra8+ {[%emt 0:00:18]} Rc8 {[%emt 0:00:14]} 40. Ra7 {[%emt 0:00:00]} Rc3+ {[%emt 0:00:00]} 41. Kf2 {[%emt 0:00:00]} Bc6 {[%emt 0:00:48]} 42. Rc7 {[%emt 0:00:47]} Rf3+ {[%emt 0:01:09]} 43. Kg2 {[%emt 0:00:10]} Bd5 {[%emt 0:00:24]} 44. Kh3 {[%emt 0:00:46]} Rf1 {[%emt 0:00:36]} 45. Rc2 {[%emt 0:00:43]} Rh1+ {[%emt 0:01:03]} 46. Rh2 {[%emt 0:00:01]} Rxh2+ {[%emt 0:00:10]} 47. Kxh2 {[%emt 0:00:02]} Kf8 {[%emt 0:02:18]} 48. Kh3 {[%emt 0:00:34]} Bf3 {[%emt 0:00:07]} 49. Kh2 {[%emt 0:00:02]} Kg8 {[%emt 0:00:08]} 50. Kg1 {[%emt 0:00:25]} Kh7 {[%emt 0:00:10]} 51. Kf2 {[%emt 0:00:01]} Bd5 {[%emt 0:00:17]} 52. Ke3 {[%emt 0:00:02]} Kg6 {[%emt 0:00:07]} 53. Kf2 {[%emt 0:00:04]} Kf5 {[%emt 0:00:05]} 54. Ke3 {[%emt 0:00:02]} Kg4 {[%emt 0:00:09]} 55. Kf2 {[%emt 0:00:01]} Bc6 {[%emt 0:00:16]} 56. Ke3 {[%emt 0:00:02]} Kxg3 {[%emt 0:00:07]} 57. Ke2 {[%emt 0:00:02]} 0-1